[Event "Early-Titled-Tuesday-Blitz-March-19-2024"]
[Site "Chess.com"]
[Date "2024.03.19"]
[Round "7"]
[White "Grischuk"]
[Black "js20000"]
[Result "1-0"]
[WhiteElo "3091"]
[BlackElo "2800"]
[TimeControl "180+1"]
[EndTime "9:18:40 PDT"]
[Termination "Grischuk won on time"]

1. d4 {[%clk 0:03:00.9]} 1... d5 {[%clk 0:02:58.4]} 2. Nf3 {[%clk 0:03:01]} 2...
Nf6 {[%clk 0:02:57.5]} 3. Bg5 {[%clk 0:03:01.2]} 3... c5 {[%clk 0:02:48.4]} 4.
Bxf6 {[%clk 0:02:59.6]} 4... gxf6 {[%clk 0:02:47.5]} 5. dxc5 {[%clk 0:02:59.3]}
5... e6 {[%clk 0:02:47.3]} 6. e3 {[%clk 0:02:48.5]} 6... Bxc5 {[%clk 0:02:46.9]}
7. Be2 {[%clk 0:02:46.5]} 7... Nc6 {[%clk 0:02:44.5]} 8. O-O {[%clk 0:02:46.2]}
8... Qe7 {[%clk 0:02:40]} 9. c4 {[%clk 0:02:36.9]} 9... dxc4 {[%clk 0:02:37.5]}
10. Nbd2 {[%clk 0:02:36.1]} 10... c3 {[%clk 0:02:30.9]} 11. bxc3 {[%clk
0:02:37]} 11... f5 {[%clk 0:02:30.3]} 12. Qc2 {[%clk 0:02:30.7]} 12... O-O
{[%clk 0:02:20.1]} 13. e4 {[%clk 0:02:18.4]} 13... fxe4 {[%clk 0:01:53.4]} 14.
Nxe4 {[%clk 0:02:18.3]} 14... Bb6 {[%clk 0:01:52]} 15. Rad1 {[%clk 0:02:04.8]}
15... Bc7 {[%clk 0:01:50.8]} 16. Rfe1 {[%clk 0:01:54.9]} 16... f5 {[%clk
0:01:35.9]} 17. Ng3 {[%clk 0:01:49.9]} 17... e5 {[%clk 0:01:34.7]} 18. Bb5
{[%clk 0:01:44.5]} 18... e4 {[%clk 0:01:25.4]} 19. Bxc6 {[%clk 0:01:43.5]} 19...
bxc6 {[%clk 0:01:25]} 20. Nd4 {[%clk 0:01:44.3]} 20... c5 {[%clk 0:01:15.8]} 21.
Nb5 {[%clk 0:01:40.7]} 21... Be5 {[%clk 0:01:03.8]} 22. c4 {[%clk 0:01:07]}
22... Be6 {[%clk 0:00:47]} 23. Nxe4 {[%clk 0:00:56.8]} 23... fxe4 {[%clk
0:00:14]} 24. Qxe4 {[%clk 0:00:57.7]} 24... Qf6 {[%clk 0:00:14.1]} 25. Qxe5
{[%clk 0:00:54.5]} 25... Qxf2+ {[%clk 0:00:13.5]} 26. Kh1 {[%clk 0:00:55]} 26...
Bxc4 {[%clk 0:00:13.5]} 27. Nd6 {[%clk 0:00:49.8]} 27... Bxa2 {[%clk 0:00:10.8]}
28. h3 {[%clk 0:00:45.9]} 28... Qf4 {[%clk 0:00:08.4]} 29. Qxc5 {[%clk
0:00:44.3]} 29... Qf6 {[%clk 0:00:03.6]} 30. Re3 {[%clk 0:00:28.6]} 30... Kh8
{[%clk 0:00:03.3]} 31. Rf3 {[%clk 0:00:24.7]} 31... Qg7 {[%clk 0:00:02.9]} 32.
Nf5 {[%clk 0:00:25.2]} 32... Qf6 {[%clk 0:00:02.3]} 33. Rdf1 {[%clk 0:00:23]}
1-0

[Event "Early-Titled-Tuesday-Blitz-March-19-2024"]
[Site "Chess.com"]
[Date "2024.03.19"]
[Round "7"]
[White "rikchessmx"]
[Black "JoliyRoger"]
[Result "0-1"]
[WhiteElo "2278"]
[BlackElo "2421"]
[TimeControl "180+1"]
[EndTime "9:18:42 PDT"]
[Termination "JoliyRoger won by resignation"]

1. e4 {[%clk 0:03:00.9]} 1... c6 {[%clk 0:02:59.1]} 2. d4 {[%clk 0:03:00.3]}
2... d5 {[%clk 0:03:00]} 3. Nc3 {[%clk 0:03:01]} 3... dxe4 {[%clk 0:02:57.7]} 4.
Nxe4 {[%clk 0:03:01.9]} 4... Nf6 {[%clk 0:02:58.2]} 5. Ng5 {[%clk 0:03:00.9]}
5... Bf5 {[%clk 0:02:53.3]} 6. N1f3 {[%clk 0:03:00.2]} 6... h6 {[%clk
0:02:51.1]} 7. Nh3 {[%clk 0:03:00]} 7... Bxh3 {[%clk 0:02:50.3]} 8. gxh3 {[%clk
0:02:59.6]} 8... e6 {[%clk 0:02:49.8]} 9. Bc4 {[%clk 0:02:58.5]} 9... Nbd7
{[%clk 0:02:37.4]} 10. Qe2 {[%clk 0:02:58]} 10... Bd6 {[%clk 0:02:36.1]} 11. Bd2
{[%clk 0:02:57.4]} 11... Qc7 {[%clk 0:02:34.6]} 12. O-O-O {[%clk 0:02:55.7]}
12... O-O-O {[%clk 0:02:35.2]} 13. Rhg1 {[%clk 0:02:41.9]} 13... g6 {[%clk
0:02:17.7]} 14. Rg2 {[%clk 0:02:41.6]} 14... Nh5 {[%clk 0:02:13.5]} 15. Re1
{[%clk 0:02:24.6]} 15... Bf4 {[%clk 0:01:59.3]} 16. Be3 {[%clk 0:02:17.8]} 16...
Nb6 {[%clk 0:01:56.3]} 17. Bb3 {[%clk 0:02:15.9]} 17... Rhe8 {[%clk 0:01:48.1]}
18. Kb1 {[%clk 0:02:07.3]} 18... Bd6 {[%clk 0:01:34]} 19. Bxh6 {[%clk
0:01:56.1]} 19... Bf4 {[%clk 0:01:29.4]} 20. Bg5 {[%clk 0:01:44.4]} 20... Bxg5
{[%clk 0:01:28.1]} 21. Rxg5 {[%clk 0:01:43.8]} 21... Nf4 {[%clk 0:01:28.6]} 22.
Qf1 {[%clk 0:01:41.2]} 22... a5 {[%clk 0:01:22.9]} 23. a4 {[%clk 0:01:37.8]}
23... Nbd5 {[%clk 0:01:21.6]} 24. Rge5 {[%clk 0:01:27.7]} 24... Nb4 {[%clk
0:01:13.9]} 25. h4 {[%clk 0:01:15.5]} 25... Rh8 {[%clk 0:01:10.6]} 26. Qc4
{[%clk 0:01:03.3]} 26... Nfd5 {[%clk 0:00:58.8]} 27. Qc5 {[%clk 0:00:36.3]}
27... Kb8 {[%clk 0:00:46]} 28. c4 {[%clk 0:00:35.6]} 28... b6 {[%clk 0:00:46.5]}
29. cxd5 {[%clk 0:00:24.9]} 29... bxc5 {[%clk 0:00:45.3]} 30. dxc6 {[%clk
0:00:25.2]} 30... Qxc6 {[%clk 0:00:36.9]} 31. Ng5 {[%clk 0:00:20.1]} 31... Rxd4
{[%clk 0:00:36.1]} 32. Nxf7 {[%clk 0:00:19.5]} 32... Re8 {[%clk 0:00:15.3]} 33.
Rxe6 {[%clk 0:00:16.7]} 33... Rxe6 {[%clk 0:00:15.5]} 34. Rxe6 {[%clk
0:00:16.8]} 34... Qh1+ {[%clk 0:00:16]} 0-1

[Event "Early-Titled-Tuesday-Blitz-March-19-2024"]
[Site "Chess.com"]
[Date "2024.03.19"]
[Round "7"]
[White "Cheer_Down"]
[Black "Ati1517"]
[Result "1-0"]
[WhiteElo "2452"]
[BlackElo "2238"]
[TimeControl "180+1"]
[EndTime "9:18:43 PDT"]
[Termination "Cheer_Down won by resignation"]

1. e4 {[%clk 0:02:57]} 1... c5 {[%clk 0:03:00.3]} 2. Nf3 {[%clk 0:02:56.6]} 2...
d6 {[%clk 0:03:00.7]} 3. d4 {[%clk 0:02:56.7]} 3... cxd4 {[%clk 0:03:01.6]} 4.
Nxd4 {[%clk 0:02:57.2]} 4... Nf6 {[%clk 0:03:02.1]} 5. Nc3 {[%clk 0:02:57.4]}
5... a6 {[%clk 0:03:01.8]} 6. Rg1 {[%clk 0:02:57.1]} 6... e5 {[%clk 0:03:00.9]}
7. Nb3 {[%clk 0:02:56.9]} 7... Be7 {[%clk 0:03:01.2]} 8. g4 {[%clk 0:02:54]}
8... b5 {[%clk 0:03:00.8]} 9. g5 {[%clk 0:02:52.7]} 9... Nfd7 {[%clk 0:02:59.7]}
10. Be3 {[%clk 0:02:43.2]} 10... Bb7 {[%clk 0:02:49.2]} 11. a4 {[%clk
0:02:39.7]} 11... b4 {[%clk 0:02:37.8]} 12. Nd5 {[%clk 0:02:39.8]} 12... a5
{[%clk 0:02:38]} 13. h4 {[%clk 0:02:29.6]} 13... Na6 {[%clk 0:02:31.8]} 14. Bb5
{[%clk 0:02:25.8]} 14... Nc7 {[%clk 0:02:12.6]} 15. Bxd7+ {[%clk 0:02:22.3]}
15... Qxd7 {[%clk 0:02:03.3]} 16. Nb6 {[%clk 0:02:22.3]} 16... Qc6 {[%clk
0:02:01.6]} 17. Nxa8 {[%clk 0:02:21.3]} 17... Bxa8 {[%clk 0:02:02.5]} 18. f3
{[%clk 0:02:18]} 18... d5 {[%clk 0:01:46]} 19. Nxa5 {[%clk 0:01:57.1]} 19... Qa6
{[%clk 0:01:44.1]} 20. Nb3 {[%clk 0:01:53.8]} 20... dxe4 {[%clk 0:01:38.5]} 21.
fxe4 {[%clk 0:01:53.4]} 21... Bxe4 {[%clk 0:01:38.4]} 22. Nc5 {[%clk 0:01:20.5]}
22... Bxc5 {[%clk 0:00:53.7]} 23. Bxc5 {[%clk 0:01:20.3]} 23... Qc6 {[%clk
0:00:53.6]} 24. Qd6 {[%clk 0:01:18.2]} 24... Qxd6 {[%clk 0:00:37.5]} 25. Bxd6
{[%clk 0:01:18.4]} 25... Nd5 {[%clk 0:00:38.2]} 26. Ke2 {[%clk 0:01:02.2]} 26...
Kd7 {[%clk 0:00:37.7]} 27. Bxe5 {[%clk 0:01:02]} 27... Ke6 {[%clk 0:00:37.7]}
28. Bxg7 {[%clk 0:01:00.7]} 28... Rc8 {[%clk 0:00:31.9]} 29. c3 {[%clk
0:00:58.2]} 29... bxc3 {[%clk 0:00:28.9]} 30. Bxc3 {[%clk 0:00:56.9]} 30...
Nxc3+ {[%clk 0:00:26.9]} 31. bxc3 {[%clk 0:00:57.2]} 31... Rxc3 {[%clk
0:00:27.5]} 32. a5 {[%clk 0:00:57.5]} 32... Ke5 {[%clk 0:00:24]} 33. a6 {[%clk
0:00:54.5]} 33... Rc2+ {[%clk 0:00:24]} 34. Ke3 {[%clk 0:00:53.2]} 34... Rc3+
{[%clk 0:00:23.4]} 35. Kd2 {[%clk 0:00:53.3]} 35... Rc2+ {[%clk 0:00:23.6]} 36.
Kd1 {[%clk 0:00:49.8]} 36... Kd4 {[%clk 0:00:23.6]} 37. Rg4 {[%clk 0:00:44.7]}
37... Rh2 {[%clk 0:00:19.5]} 38. Rxe4+ {[%clk 0:00:44.8]} 38... Kxe4 {[%clk
0:00:19.3]} 39. Kc1 {[%clk 0:00:44.6]} 39... Rh1+ {[%clk 0:00:15.3]} 40. Kb2
{[%clk 0:00:44.4]} 40... Rh2+ {[%clk 0:00:16.2]} 41. Kb3 {[%clk 0:00:44.7]}
41... Rh3+ {[%clk 0:00:16.3]} 42. Kb4 {[%clk 0:00:44.3]} 42... Kd5 {[%clk
0:00:16.6]} 43. Kb5 {[%clk 0:00:43.3]} 43... Rb3+ {[%clk 0:00:15.7]} 44. Ka5
{[%clk 0:00:43.7]} 44... Rb8 {[%clk 0:00:15.7]} 45. a7 {[%clk 0:00:43.2]} 45...
Ra8 {[%clk 0:00:16]} 46. Kb6 {[%clk 0:00:43.6]} 46... Kd6 {[%clk 0:00:15]} 47.
Kb7 {[%clk 0:00:43.8]} 47... Re8 {[%clk 0:00:15.1]} 48. a8=Q {[%clk 0:00:44.1]}
48... Re7+ {[%clk 0:00:16]} 49. Kb6 {[%clk 0:00:43.7]} 1-0

[Event "Early-Titled-Tuesday-Blitz-March-19-2024"]
[Site "Chess.com"]
[Date "2024.03.19"]
[Round "7"]
[White "Incognizance"]
[Black "lluiss"]
[Result "1-0"]
[WhiteElo "1900"]
[BlackElo "2225"]
[TimeControl "180+1"]
[EndTime "9:18:43 PDT"]
[Termination "Incognizance won on time"]

1. d4 {[%clk 0:03:00.9]} 1... Nf6 {[%clk 0:02:56.8]} 2. c4 {[%clk 0:02:59.9]}
2... g6 {[%clk 0:02:56.6]} 3. Nc3 {[%clk 0:02:59.8]} 3... d5 {[%clk 0:02:56.7]}
4. cxd5 {[%clk 0:03:00.7]} 4... Nxd5 {[%clk 0:02:56.8]} 5. e4 {[%clk 0:03:01.6]}
5... Nxc3 {[%clk 0:02:57]} 6. bxc3 {[%clk 0:03:02.5]} 6... Bg7 {[%clk
0:02:56.7]} 7. Nf3 {[%clk 0:03:03.2]} 7... c5 {[%clk 0:02:55.9]} 8. Rb1 {[%clk
0:03:03.2]} 8... O-O {[%clk 0:02:54.8]} 9. Be2 {[%clk 0:03:02.5]} 9... cxd4
{[%clk 0:02:54.7]} 10. cxd4 {[%clk 0:03:02.6]} 10... Qa5+ {[%clk 0:02:54.7]} 11.
Bd2 {[%clk 0:03:03.3]} 11... Qxa2 {[%clk 0:02:54.3]} 12. O-O {[%clk 0:03:03.9]}
12... Bg4 {[%clk 0:02:53.9]} 13. Be3 {[%clk 0:03:04.5]} 13... Nc6 {[%clk
0:02:48]} 14. d5 {[%clk 0:02:56.1]} 14... Ne5 {[%clk 0:02:40.7]} 15. Re1 {[%clk
0:02:55.8]} 15... Nxf3+ {[%clk 0:01:50.6]} 16. gxf3 {[%clk 0:02:53]} 16... Bc8
{[%clk 0:01:46.6]} 17. Bg5 {[%clk 0:02:39.8]} 17... Qa3 {[%clk 0:01:40.5]} 18.
Rb3 {[%clk 0:02:27.7]} 18... Qd6 {[%clk 0:01:37.7]} 19. f4 {[%clk 0:02:18.5]}
19... h6 {[%clk 0:01:28.9]} 20. e5 {[%clk 0:02:16.5]} 20... Qd7 {[%clk 0:01:29]}
21. Bb5 {[%clk 0:02:09.1]} 21... Qf5 {[%clk 0:00:45.9]} 22. Bd3 {[%clk
0:01:51.9]} 22... Qd7 {[%clk 0:00:41.9]} 23. Bb5 {[%clk 0:00:54.5]} 23... Qf5
{[%clk 0:00:41.1]} 24. Bxe7 {[%clk 0:00:54.6]} 24... Qxf4 {[%clk 0:00:38.3]} 25.
Bxf8 {[%clk 0:00:50.6]} 25... Bxf8 {[%clk 0:00:22.7]} 26. Qf3 {[%clk 0:00:39.1]}
26... Qxf3 {[%clk 0:00:09.6]} 27. Rxf3 {[%clk 0:00:38.4]} 27... Bf5 {[%clk
0:00:07.2]} 28. Bd3 {[%clk 0:00:37.1]} 28... Bxd3 {[%clk 0:00:05.8]} 29. Rxd3
{[%clk 0:00:24.7]} 29... Bc5 {[%clk 0:00:05.8]} 30. e6 {[%clk 0:00:21.1]} 30...
fxe6 {[%clk 0:00:04.6]} 31. Rxe6 {[%clk 0:00:20.7]} 31... Kf7 {[%clk 0:00:04]}
32. Re4 {[%clk 0:00:20]} 32... b6 {[%clk 0:00:02.7]} 33. d6 {[%clk 0:00:20.1]}
33... Rd8 {[%clk 0:00:01.9]} 34. d7 {[%clk 0:00:20.7]} 1-0

[Event "Early-Titled-Tuesday-Blitz-March-19-2024"]
[Site "Chess.com"]
[Date "2024.03.19"]
[Round "7"]
[White "GMG"]
[Black "Rud_Makarian"]
[Result "1-0"]
[WhiteElo "2811"]
[BlackElo "2961"]
[TimeControl "180+1"]
[EndTime "9:18:44 PDT"]
[Termination "GMG won by checkmate"]

1. d4 {[%clk 0:02:58.7]} 1... Nf6 {[%clk 0:03:00.2]} 2. c4 {[%clk 0:02:58.6]}
2... e6 {[%clk 0:03:00.8]} 3. Nf3 {[%clk 0:02:58.7]} 3... d5 {[%clk 0:03:01.7]}
4. Nc3 {[%clk 0:02:58.4]} 4... dxc4 {[%clk 0:03:01.4]} 5. e3 {[%clk 0:02:57.5]}
5... a6 {[%clk 0:03:01.5]} 6. Bxc4 {[%clk 0:02:57.3]} 6... b5 {[%clk 0:03:02.1]}
7. Bb3 {[%clk 0:02:56.6]} 7... Bb7 {[%clk 0:03:02.2]} 8. O-O {[%clk 0:02:56]}
8... c5 {[%clk 0:03:02.8]} 9. e4 {[%clk 0:02:55.5]} 9... cxd4 {[%clk 0:03:02.6]}
10. Nxd4 {[%clk 0:02:48.3]} 10... Nbd7 {[%clk 0:03:02.8]} 11. Re1 {[%clk
0:02:36.4]} 11... Qb8 {[%clk 0:02:51.8]} 12. e5 {[%clk 0:01:39.3]} 12... Nxe5
{[%clk 0:02:50.9]} 13. Bxe6 {[%clk 0:01:16.1]} 13... fxe6 {[%clk 0:02:07.3]} 14.
Nxe6 {[%clk 0:01:15.3]} 14... Bd6 {[%clk 0:01:18.2]} 15. Bf4 {[%clk 0:01:11.9]}
15... Kf7 {[%clk 0:00:33.7]} 16. Ng5+ {[%clk 0:01:04]} 16... Kf8 {[%clk
0:00:20.1]} 17. Bxe5 {[%clk 0:00:52.6]} 17... Bxe5 {[%clk 0:00:20.5]} 18. Qb3
{[%clk 0:00:52.5]} 18... Nd5 {[%clk 0:00:10]} 19. Nxd5 {[%clk 0:00:49.3]} 19...
h6 {[%clk 0:00:10.4]} 20. Ne7 {[%clk 0:00:29.3]} 20... Kxe7 {[%clk 0:00:03.5]}
21. Qf7+ {[%clk 0:00:22.4]} 21... Kd6 {[%clk 0:00:04.1]} 22. Rxe5 {[%clk
0:00:14.4]} 22... Kxe5 {[%clk 0:00:01.4]} 23. Qe7+ {[%clk 0:00:13.7]} 23... Kd4
{[%clk 0:00:01.3]} 24. Rd1+ {[%clk 0:00:12.5]} 24... Kc4 {[%clk 0:00:01.5]} 25.
b3+ {[%clk 0:00:10.4]} 25... Kc3 {[%clk 0:00:02.1]} 26. Qc5+ {[%clk 0:00:08.8]}
26... Kb2 {[%clk 0:00:02.1]} 27. Rd2+ {[%clk 0:00:05.5]} 27... Kb1 {[%clk
0:00:02.5]} 28. Qc2+ {[%clk 0:00:05.4]} 28... Ka1 {[%clk 0:00:02.8]} 29. Qd1#
{[%clk 0:00:06.3]} 1-0

[Event "Early-Titled-Tuesday-Blitz-March-19-2024"]
[Site "Chess.com"]
[Date "2024.03.19"]
[Round "7"]
[White "jocmil"]
[Black "Manukyan_Artak"]
[Result "1-0"]
[WhiteElo "2773"]
[BlackElo "2475"]
[TimeControl "180+1"]
[EndTime "9:18:46 PDT"]
[Termination "jocmil won by resignation"]

1. d4 {[%clk 0:03:00.6]} 1... d5 {[%clk 0:02:59.8]} 2. Bf4 {[%clk 0:02:59]} 2...
Bg4 {[%clk 0:02:57.1]} 3. c4 {[%clk 0:02:57.3]} 3... c6 {[%clk 0:02:56.8]} 4.
Nc3 {[%clk 0:02:55.9]} 4... e6 {[%clk 0:02:55.5]} 5. Qb3 {[%clk 0:02:52]} 5...
Qb6 {[%clk 0:02:53.9]} 6. c5 {[%clk 0:02:52.2]} 6... Qxb3 {[%clk 0:02:53.8]} 7.
axb3 {[%clk 0:02:51]} 7... Nf6 {[%clk 0:02:49.9]} 8. b4 {[%clk 0:02:39.6]} 8...
Nh5 {[%clk 0:02:45.6]} 9. Bxb8 {[%clk 0:02:28]} 9... Rxb8 {[%clk 0:02:45.5]} 10.
h3 {[%clk 0:02:28]} 10... a6 {[%clk 0:02:32.5]} 11. hxg4 {[%clk 0:02:25.9]}
11... Nf6 {[%clk 0:02:33.4]} 12. g5 {[%clk 0:02:18.6]} 12... Nd7 {[%clk
0:02:33]} 13. Nf3 {[%clk 0:02:17.3]} 13... Be7 {[%clk 0:02:30.4]} 14. e3 {[%clk
0:02:16.7]} 14... O-O {[%clk 0:02:26.8]} 15. Bd3 {[%clk 0:02:14.5]} 15... g6
{[%clk 0:02:17.9]} 16. Kd2 {[%clk 0:02:11.6]} 16... Kg7 {[%clk 0:02:13.5]} 17.
Kc2 {[%clk 0:02:07.4]} 17... Rh8 {[%clk 0:02:08]} 18. Ne2 {[%clk 0:01:53.2]}
18... h5 {[%clk 0:02:01.8]} 19. gxh6+ {[%clk 0:01:52.9]} 19... Rxh6 {[%clk
0:02:01.1]} 20. Rxh6 {[%clk 0:01:53.8]} 20... Kxh6 {[%clk 0:02:02]} 21. Rh1+
{[%clk 0:01:54.1]} 21... Kg7 {[%clk 0:01:55.2]} 22. g4 {[%clk 0:01:53.7]} 22...
Re8 {[%clk 0:01:47.4]} 23. g5 {[%clk 0:01:42.2]} 23... Bd8 {[%clk 0:01:42.8]}
24. Kd2 {[%clk 0:01:31.3]} 24... e5 {[%clk 0:01:33.1]} 25. dxe5 {[%clk
0:01:30.2]} 25... Nxe5 {[%clk 0:01:34]} 26. Nxe5 {[%clk 0:01:31]} 26... Rxe5
{[%clk 0:01:33.5]} 27. f4 {[%clk 0:01:31.5]} 27... Re8 {[%clk 0:01:27.7]} 28.
Nd4 {[%clk 0:01:31.6]} 28... Be7 {[%clk 0:01:22.2]} 29. Nb3 {[%clk 0:01:23.5]}
29... Bd8 {[%clk 0:01:17.7]} 30. Na5 {[%clk 0:01:21.8]} 30... Re7 {[%clk
0:01:09.6]} 31. f5 {[%clk 0:01:15.3]} 31... gxf5 {[%clk 0:01:05.6]} 32. Bxf5
{[%clk 0:01:16.2]} 32... Re5 {[%clk 0:00:54.8]} 33. Rf1 {[%clk 0:00:56.9]} 33...
Bxg5 {[%clk 0:00:50.9]} 34. Rf3 {[%clk 0:00:56.5]} 34... d4 {[%clk 0:00:46.5]}
35. Nc4 {[%clk 0:00:46.2]} 35... dxe3+ {[%clk 0:00:44.4]} 36. Ke2 {[%clk
0:00:24.5]} 36... Re7 {[%clk 0:00:43.6]} 37. Bd3 {[%clk 0:00:20.1]} 37... f6
{[%clk 0:00:28.4]} 38. Nd6 {[%clk 0:00:20]} 38... Bh6 {[%clk 0:00:15.7]} 39.
Nf5+ {[%clk 0:00:19.2]} 1-0

[Event "Early-Titled-Tuesday-Blitz-March-19-2024"]
[Site "Chess.com"]
[Date "2024.03.19"]
[Round "7"]
[White "amanjazu"]
[Black "kingofthenil"]
[Result "1-0"]
[WhiteElo "2564"]
[BlackElo "2778"]
[TimeControl "180+1"]
[EndTime "9:18:47 PDT"]
[Termination "amanjazu won by resignation"]

1. g3 {[%clk 0:03:00.9]} 1... e5 {[%clk 0:02:42.5]} 2. Bg2 {[%clk 0:03:01.8]}
2... d5 {[%clk 0:02:41.8]} 3. d4 {[%clk 0:02:59.7]} 3... exd4 {[%clk 0:02:29.1]}
4. Qxd4 {[%clk 0:03:00.6]} 4... Nc6 {[%clk 0:02:27.9]} 5. Qxd5 {[%clk
0:02:57.4]} 5... Bd6 {[%clk 0:02:25.9]} 6. Nc3 {[%clk 0:02:54.3]} 6... Nf6
{[%clk 0:02:25.5]} 7. Qd1 {[%clk 0:02:46.6]} 7... Bg4 {[%clk 0:02:20.6]} 8. Nf3
{[%clk 0:02:46.5]} 8... Qe7 {[%clk 0:02:21]} 9. O-O {[%clk 0:02:46.4]} 9...
O-O-O {[%clk 0:02:21.5]} 10. Qe1 {[%clk 0:02:39.6]} 10... h5 {[%clk 0:02:19.1]}
11. h3 {[%clk 0:02:33.6]} 11... Bxf3 {[%clk 0:02:18.8]} 12. exf3 {[%clk
0:02:33.7]} 12... Qxe1 {[%clk 0:02:18]} 13. Rxe1 {[%clk 0:02:34.6]} 13... Nd4
{[%clk 0:02:18.8]} 14. Rb1 {[%clk 0:02:28.5]} 14... Nxc2 {[%clk 0:02:18.7]} 15.
Re2 {[%clk 0:02:28.8]} 15... Nd4 {[%clk 0:02:18.5]} 16. Rd2 {[%clk 0:02:29.2]}
16... Ne6 {[%clk 0:02:05.6]} 17. h4 {[%clk 0:02:25.1]} 17... Rhe8 {[%clk
0:01:55.1]} 18. Bh3 {[%clk 0:02:24.5]} 18... Kb8 {[%clk 0:01:51.9]} 19. Kg2
{[%clk 0:02:24.8]} 19... a6 {[%clk 0:01:43.6]} 20. Rd1 {[%clk 0:02:23.4]} 20...
Be5 {[%clk 0:01:41.1]} 21. Bg5 {[%clk 0:02:13.7]} 21... Bxc3 {[%clk 0:01:26.4]}
22. Bxe6 {[%clk 0:01:45.7]} 22... Rxd1 {[%clk 0:00:44.3]} 23. Rxd1 {[%clk
0:01:44.7]} 23... fxe6 {[%clk 0:00:31.2]} 24. bxc3 {[%clk 0:01:43.7]} 24... b5
{[%clk 0:00:32.1]} 25. Bxf6 {[%clk 0:01:32.1]} 25... gxf6 {[%clk 0:00:33]} 26.
g4 {[%clk 0:01:32.5]} 26... c5 {[%clk 0:00:08.9]} 27. Kg3 {[%clk 0:01:28.5]}
27... Kc7 {[%clk 0:00:07]} 28. g5 {[%clk 0:01:25.3]} 28... Rg8 {[%clk
0:00:04.2]} 29. Kf4 {[%clk 0:01:25.1]} 29... Rf8 {[%clk 0:00:01.7]} 30. Ke4
{[%clk 0:01:20.3]} 30... b4 {[%clk 0:00:01.2]} 31. cxb4 {[%clk 0:01:18.3]} 31...
cxb4 {[%clk 0:00:02.1]} 32. f4 {[%clk 0:01:16.8]} 32... a5 {[%clk 0:00:02.2]}
33. g6 {[%clk 0:01:15.2]} 33... f5+ {[%clk 0:00:01.1]} 34. Ke5 {[%clk
0:01:14.9]} 34... a4 {[%clk 0:00:01.3]} 35. Kxe6 {[%clk 0:01:13.7]} 35... Kc6
{[%clk 0:00:01.4]} 36. g7 {[%clk 0:01:13.4]} 36... Rb8 {[%clk 0:00:01.7]} 37.
Kxf5 {[%clk 0:01:12.7]} 37... b3 {[%clk 0:00:01.3]} 38. axb3 {[%clk 0:01:12.4]}
38... axb3 {[%clk 0:00:02.2]} 39. Kg6 {[%clk 0:01:13]} 39... Kc5 {[%clk
0:00:02.5]} 40. f5 {[%clk 0:01:12.9]} 40... b2 {[%clk 0:00:02.9]} 41. f6 {[%clk
0:01:12.8]} 41... Rd8 {[%clk 0:00:03.3]} 42. Rb1 {[%clk 0:01:12.1]} 42... Rd2
{[%clk 0:00:03]} 43. g8=Q {[%clk 0:01:11.5]} 43... Rxf2 {[%clk 0:00:03.3]} 44.
Qc8+ {[%clk 0:01:11.7]} 44... Kd5 {[%clk 0:00:03.6]} 45. Qb7+ {[%clk 0:01:11.4]}
45... Ke5 {[%clk 0:00:04.5]} 46. Qe7+ {[%clk 0:01:11.2]} 46... Kd5 {[%clk
0:00:04.3]} 47. Qd7+ {[%clk 0:01:08.9]} 47... Kc4 {[%clk 0:00:05]} 48. Qa4+
{[%clk 0:01:07.3]} 48... Kc3 {[%clk 0:00:05.5]} 49. Qa3+ {[%clk 0:01:06.3]}
49... Kc4 {[%clk 0:00:06.1]} 50. Rxb2 {[%clk 0:01:04.1]} 50... Rxf6+ {[%clk
0:00:04.4]} 51. Kxf6 {[%clk 0:01:03.5]} 1-0

[Event "Early-Titled-Tuesday-Blitz-March-19-2024"]
[Site "Chess.com"]
[Date "2024.03.19"]
[Round "7"]
[White "AryanTari"]
[Black "kpio91"]
[Result "1-0"]
[WhiteElo "3017"]
[BlackElo "2852"]
[TimeControl "180+1"]
[EndTime "9:18:48 PDT"]
[Termination "AryanTari won on time"]

1. e4 {[%clk 0:02:59.8]} 1... g6 {[%clk 0:03:00.9]} 2. d4 {[%clk 0:02:59.2]}
2... Bg7 {[%clk 0:03:01.6]} 3. f3 {[%clk 0:02:57.8]} 3... d6 {[%clk 0:02:42.1]}
4. Nc3 {[%clk 0:02:55.3]} 4... a6 {[%clk 0:02:36.9]} 5. Be3 {[%clk 0:02:54.4]}
5... b5 {[%clk 0:02:36.9]} 6. Qd2 {[%clk 0:02:54.6]} 6... Nd7 {[%clk 0:02:35.2]}
7. h4 {[%clk 0:02:53.9]} 7... h5 {[%clk 0:02:34.9]} 8. Nh3 {[%clk 0:02:53.8]}
8... Bb7 {[%clk 0:02:31.7]} 9. Ng5 {[%clk 0:02:53.5]} 9... e6 {[%clk 0:02:30]}
10. Bd3 {[%clk 0:02:53.1]} 10... Ngf6 {[%clk 0:02:29]} 11. Ne2 {[%clk
0:02:52.2]} 11... Qe7 {[%clk 0:02:26.7]} 12. a4 {[%clk 0:02:47.2]} 12... O-O
{[%clk 0:02:10.3]} 13. O-O {[%clk 0:02:31.3]} 13... c6 {[%clk 0:02:02.7]} 14. c3
{[%clk 0:02:22.8]} 14... e5 {[%clk 0:01:59.8]} 15. b4 {[%clk 0:02:17.6]} 15...
Rfe8 {[%clk 0:01:20.9]} 16. Ng3 {[%clk 0:02:15.4]} 16... d5 {[%clk 0:01:20.6]}
17. a5 {[%clk 0:02:06.1]} 17... dxe4 {[%clk 0:01:11.8]} 18. fxe4 {[%clk
0:02:06.3]} 18... Rf8 {[%clk 0:01:07.9]} 19. Be2 {[%clk 0:02:05.7]} 19... Rad8
{[%clk 0:01:05.4]} 20. Qb2 {[%clk 0:01:39.9]} 20... Nh7 {[%clk 0:01:04.7]} 21.
Rae1 {[%clk 0:01:29.9]} 21... Rde8 {[%clk 0:01:00.4]} 22. Bxh5 {[%clk
0:01:10.2]} 22... gxh5 {[%clk 0:00:54.8]} 23. Nf5 {[%clk 0:01:10.5]} 23... Qf6
{[%clk 0:00:40.8]} 24. Rf3 {[%clk 0:00:47.7]} 24... Kh8 {[%clk 0:00:32]} 25. Rg3
{[%clk 0:00:28.3]} 25... Bh6 {[%clk 0:00:21.5]} 26. Nxh6 {[%clk 0:00:23.7]}
26... Qxh6 {[%clk 0:00:14.3]} 27. Nxf7+ {[%clk 0:00:23.8]} 27... Rxf7 {[%clk
0:00:14.8]} 28. Bxh6 {[%clk 0:00:24.2]} 28... Nhf6 {[%clk 0:00:15.1]} 29. Qf2
{[%clk 0:00:17.9]} 29... Ree7 {[%clk 0:00:06.6]} 30. Qf5 {[%clk 0:00:17.5]}
30... Bc8 {[%clk 0:00:05]} 31. Qg6 {[%clk 0:00:15.9]} 31... Nf8 {[%clk
0:00:03.2]} 32. Bxf8 {[%clk 0:00:15.4]} 32... Rxf8 {[%clk 0:00:03.6]} 33. Rf1
{[%clk 0:00:14.9]} 1-0